bitfinex/quotes_SOLUSD_20240922
["timestamp","ask_amount","ask_price","bid_price","bid_amount"]
[1727031454216,6.9147,144.62,144.56,17.2933]
[1727031454390,6.3841,144.64,144.57,6.917]
[1727031454391,6.9151,144.61,144.57,6.917]
[1727031455307,6.3841,144.64,144.59,6.916]
[1727031455490,16.4842,144.66,144.6,1.382977]
[1727031455690,6.9137,144.64,144.59,6.916]
[1727031457005,6.9142,144.63,144.59,6.916]
[1727031464519,6.9147,144.62,144.58,24.207]
[1727031468723,0.12549,144.64,144.56,20.0]
[1727031468921,6.9157,144.6,144.56,6.9171]
[1727031469406,6.9163,144.59,144.55,24.2122]
[1727031470202,6.9163,144.59,144.55,17.2946]
[1727031471015,6.9163,144.59,144.55,24.2125]
[1727031474235,0.12549,144.63,144.55,24.2125]
[1727031474236,6.9167,144.58,144.55,17.2946]
[1727031475030,6.9162,144.59,144.55,17.2946]
[1727031475612,6.9162,144.59,144.55,24.2125]
[1727031484339,6.9169,144.58,144.54,13.5330626]
[1727031484533,6.9175,144.57,144.54,0.2466626]
[1727031484732,6.9176,144.56,144.54,0.2466626]
[1727031485428,6.918,144.55,144.54,0.2466626]
[1727031489950,6.9176,144.56,144.54,0.2466626]
[1727031490247,6.918,144.55,144.54,0.2466626]
[1727031492135,6.9176,144.56,144.54,0.2466626]
[1727031493534,6.918,144.55,144.54,0.2466626]
[1727031493732,7.04349,144.55,144.54,0.2466626]
[1727031494837,30.820374,144.55,144.54,0.2466626]
[1727031503760,24.027864,144.55,144.5,0.3093392]
[1727031503939,6.9199,144.51,144.5,0.3093392]
[1727031504132,7.04539,144.51,144.5,0.3093392]
[1727031504852,6.9194,144.52,144.5,0.3093392]
[1727031506043,6.9199,144.51,144.5,0.3093392]
[1727031506252,7.04539,144.51,144.5,0.3093392]
[1727031508055,6.9199,144.51,144.5,0.3093392]
[1727031508255,6.9195,144.52,144.5,0.3093392]
[1727031508643,6.9191,144.53,144.5,0.3093392]
[1727031513459,23.776884,144.56,144.5,7.2295392]
[1727031513664,20.0,144.57,144.5,33.8039392]
[1727031513854,17.2921,144.58,144.5,33.8039392]
[1727031514057,17.2921,144.58,144.51,1.38375804]
[1727031514369,17.2921,144.58,144.5,33.8039392]
[1727031515050,23.902374,144.57,144.5,33.8039392]
[1727031515256,6.9181,144.55,144.51,6.9198]
[1727031519168,23.902374,144.57,144.5,16.5033392]
[1727031519341,6.9199,144.51,144.5,16.5033392]
[1727031519544,6.9199,144.51,144.5,0.3093392]
[1727031519766,6.9196,144.52,144.5,0.3093392]
[1727031523080,0.12549,144.53,144.5,0.3093392]
[1727031523081,6.9199,144.51,144.5,0.3093392]
[1727031523273,7.04539,144.51,144.5,0.3093392]
[1727031526564,30.822274,144.51,144.5,0.3093392]
[1727031526878,30.822774,144.5,144.49,0.0931879]
[1727031527682,7.04589,144.5,144.49,0.0931879]
[1727031530286,6.9204,144.5,144.49,0.0931879]
[1727031532391,6.9204,144.5,144.45,0.2466626]
[1727031532392,30.824674,144.46,144.45,0.2466626]
[1727031534271,30.950164,144.46,144.45,0.2466626]
[1727031534475,30.950164,144.46,144.41,0.3093392]
[1727031534476,23.902374,144.45,144.41,0.3093392]
[1727031534683,6.9238,144.43,144.41,0.3093392]
[1727031540192,6.9229,144.45,144.41,15.9100392]
[1727031540572,6.9223,144.47,144.41,33.2212392]
[1727031540777,33.2746,144.5,144.42,6.9238]
[1727031540980,6.9218,144.47,144.42,6.9238]
[1727031542685,6.9223,144.46,144.42,6.9238]
[1727031544380,23.902374,144.49,144.41,33.2212392]
[1727031544381,6.923,144.45,144.41,40.1459392]
[1727031550091,6.923,144.45,144.41,33.2212392]
[1727031551806,6.9238,144.43,144.41,15.9100392]
[1727031552598,6.9242,144.42,144.41,0.3093392]
[1727031553472,7.04969,144.42,144.41,0.3093392]
[1727031558207,30.826574,144.42,144.41,0.3093392]
[1727031559100,30.952064,144.42,144.41,0.3093392]
[1727031559408,30.827074,144.41,144.4,0.0931879]
[1727031559586,30.952564,144.41,144.4,0.0931879]
[1727031560316,30.952564,144.41,144.37,0.2466626]
[1727031560317,6.9261,144.38,144.37,0.2466626]
[1727031560633,7.05159,144.38,144.37,0.2466626]
[1727031561491,23.776884,144.41,144.37,0.2466626]
[1727031561702,6.9256,144.4,144.37,0.2466626]
[1727031562212,6.9258,144.39,144.37,0.2466626]
[1727031562910,7.05079,144.4,144.37,0.2466626]
[1727031563216,7.05099,144.4,144.37,0.2466626]
[1727031563430,6.9255,144.4,144.37,0.2466626]
[1727031563596,6.925,144.41,144.37,0.2466626]
[1727031563794,6.9253,144.4,144.37,0.2466626]
[1727031569113,7.05029,144.41,144.37,0.2466626]
[1727031569907,6.9243,144.42,144.38,6.9261]
[1727031570114,7.69178069,144.46,144.39,6.9256]
[1727031570115,6.9237,144.43,144.39,6.9256]
[1727031570316,6.9237,144.43,144.38,6.926]
[1727031570527,6.9242,144.42,144.38,6.926]
[1727031570711,6.9242,144.42,144.38,23.1371]
[1727031571018,7.69178069,144.46,144.39,6.9253]
[1727031571201,6.9234,144.44,144.4,6.9251]
[1727031577919,6.9229,144.45,144.4,6.9251]
[1727031578236,6.9229,144.45,144.41,6.9247]
[1727031579407,6.9229,144.45,144.4,24.2376]
[1727031579630,6.9234,144.44,144.4,24.2376]
[1727031579827,6.9238,144.43,144.39,6.9256]
[1727031585637,6.9245,144.42,144.38,29.6682]
[1727031594361,6.9238,144.43,144.38,22.7422]
[1727031594648,6.9238,144.43,144.39,7.3622398]
[1727031594852,6.9238,144.43,144.39,6.9255]
[1727031600561,6.9233,144.44,144.4,6.9248]
[1727031601236,6.9238,144.43,144.39,24.2396]
[1727031601538,6.9231,144.45,144.4,6.9248]
[1727031601747,6.9234,144.44,144.4,6.9248]
[1727031604357,24.027864,144.46,144.39,17.314]
[1727031604549,6.9243,144.42,144.39,17.314]
[1727031610568,6.9238,144.43,144.39,24.2396]
[1727031610742,1.45098012,144.52,144.42,20.0]
[1727031611085,0.2466626,144.52,144.46,6.9219]
[1727031611365,6.9202,144.51,144.46,6.9221]
[1727031613769,0.2466626,144.52,144.45,17.3064]
[1727031613770,7.1661626,144.52,144.47,6.9217]
[1727031616350,0.12549,144.51,144.45,23.5841]
[1727031616569,6.9208,144.5,144.45,24.2291]
[1727031616758,6.9217,144.48,144.43,22.6582]
[1727031616963,6.922,144.47,144.43,22.6582]
[1727031620585,6.9223,144.46,144.43,15.7345]
[1727031620876,6.9223,144.46,144.42,30.512]
[1727031622456,6.9229,144.45,144.42,17.3102]
[1727031623161,6.9234,144.44,144.4,22.6861]
[1727031623563,6.9234,144.44,144.39,24.239]
[1727031624262,6.9238,144.43,144.39,24.239]
[1727031624780,6.9234,144.44,144.4,6.925]
[1727031626567,6.9234,144.44,144.39,24.239]
[1727031629178,6.9234,144.44,144.4,6.9251]
[1727031634198,6.9234,144.44,144.39,24.239]
[1727031636467,6.9234,144.44,144.4,6.9251]
[1727031638687,6.9234,144.44,144.4,8.30991466]
[1727031640292,6.9228,144.45,144.41,6.9247]
[1727031640469,6.9218,144.47,144.43,6.9236]
[1727031640670,6.9214,144.48,144.44,8.30771221]
[1727031640870,0.2466626,144.52,144.44,1.38451221]
[1727031641269,0.2466626,144.52,144.44,10.3865202]
[1727031641470,6.9206,144.5,144.46,6.9219]
[1727031641794,7.1661626,144.52,144.47,6.9217]
[1727031641996,7.1661626,144.52,144.47,17.304]
[1727031642171,7.1661626,144.52,144.47,24.2257]
[1727031642372,6.92,144.51,144.47,24.2257]
[1727031642672,6.92,144.51,144.47,17.304]
[1727031653373,6.9204,144.5,144.47,17.304]
[1727031660504,0.2466626,144.52,144.47,17.304]
[1727031661080,0.2466626,144.52,144.48,6.9211]
[1727031661782,7.1661626,144.52,144.48,6.9211]
[1727031661981,7.1661626,144.52,144.49,0.95691684]
[1727031664207,0.2466626,144.52,144.5,6.92]
[1727031667808,0.2466626,144.52,144.51,6.9199]
[1727031670505,0.2466626,144.52,144.51,21.93]
[1727031673424,0.2466626,144.52,144.51,23.31187317]
[1727031673806,0.2466626,144.52,144.51,21.93]
[1727031674015,0.2466626,144.52,144.5,6.9202]
[1727031696020,0.2466626,144.52,144.49,17.3019]
[1727031696241,0.2466626,144.52,144.51,6.9199]
[1727031696822,0.2466626,144.52,144.51,7.52711566]
[1727031697443,0.2466626,144.52,144.51,8.30341498]
[1727031697831,0.2466626,144.52,144.51,6.9199]
[1727031715335,0.2466626,144.52,144.5,6.9203]
[1727031717548,0.2466626,144.52,144.49,24.2226]
[1727031717749,0.2466626,144.52,144.46,17.305]
[1727031719251,6.92,144.51,144.47,6.9218]
[1727031726465,7.1661626,144.52,144.48,6.9212]
[1727031726846,7.1661626,144.52,144.49,1.38392409]
[1727031727060,7.1661626,144.52,144.48,6.9212]
[1727031729877,0.2466626,144.52,144.49,1.38392485]
[1727031730364,0.2466626,144.52,144.5,6.92]
[1727031731156,0.2466626,144.52,144.51,1.38369858]
[1727031732868,0.2466626,144.52,144.49,26.9208]
[1727031733068,0.2466626,144.52,144.48,24.2241]
[1727031740554,0.2466626,144.52,144.49,6.9207]
[1727031743605,0.2466626,144.52,144.5,8.30396507]
[1727031743873,0.2466626,144.52,144.51,6.9199]
[1727031744883,0.2466626,144.52,144.51,7.36680667]
[1727031745279,0.2466626,144.52,144.51,6.9199]
[1727031745482,0.2466626,144.52,144.51,8.30343985]
[1727031745873,0.2466626,144.52,144.51,6.9199]
[1727031746273,0.2466626,144.52,144.51,7.36713978]
[1727031746896,0.2466626,144.52,144.51,6.9199]
[1727031750394,0.2466626,144.52,144.5,24.2208]
[1727031753897,0.2466626,144.52,144.5,17.3006]
[1727031765083,0.2466626,144.52,144.5,24.2208]
[1727031771205,0.2466626,144.52,144.5,17.3006]
[1727031771406,6.92,144.51,144.47,17.3037]
[1727031771708,6.92,144.51,144.47,24.2251]
[1727031774007,6.92,144.51,144.48,8.14698999]
[1727031774204,6.92,144.51,144.47,24.2251]
[1727031774417,6.92,144.51,144.48,8.14689167]
[1727031774589,6.92,144.51,144.47,24.2251]
[1727031774789,6.92,144.51,144.48,8.14628005]
[1727031775007,6.92,144.51,144.47,32.82836613]
[1727031775204,6.92,144.51,144.48,8.42081649]
[1727031775412,6.92,144.51,144.48,6.2517073]
[1727031775715,6.92,144.51,144.49,6.2517073]
[1727031775899,6.92,144.51,144.47,24.2251]
[1727031776100,6.92,144.51,144.48,6.2510173]
[1727031776302,6.92,144.51,144.47,24.2251]
[1727031776493,6.92,144.51,144.48,6.25017152]
[1727031776695,6.92,144.51,144.47,24.2251]
[1727031776899,6.92,144.51,144.48,6.36645268]
[1727031777102,6.92,144.51,144.47,24.2251]
[1727031779112,6.92,144.51,144.47,32.82421228]
[1727031779911,7.1662626,144.52,144.48,6.9212]
[1727031780217,0.2466626,144.52,144.49,6.9204]
[1727031780516,0.2466626,144.52,144.5,6.9203]
[1727031780726,0.2466626,144.52,144.51,6.9199]
[1727031783917,0.2466626,144.52,144.51,26.9199]
[1727031784597,0.2466626,144.52,144.51,6.9199]
[1727031785603,0.2466626,144.52,144.51,14.74300449]
[1727031786312,0.2466626,144.52,144.51,6.9199]
[1727031789124,0.2466626,144.52,144.51,36.04739799]
[1727031789418,0.2466626,144.52,144.51,104.45835798]
[1727031789623,0.2466626,144.52,144.51,110.82125798]
[1727031790601,0.2466626,144.52,144.51,110.8176868]
[1727031791203,0.2466626,144.52,144.51,99.1065185]
[1727031793634,0.2466626,144.52,144.51,90.52057648]
[1727031793843,0.2466626,144.52,144.51,91.27918966]
[1727031794125,0.2466626,144.52,144.51,90.51346432]
[1727031794308,0.2466626,144.52,144.51,99.09658864]
[1727031797007,0.2466626,144.52,144.51,90.51346432]
[1727031797324,0.2466626,144.52,144.51,110.81050572]
[1727031797927,0.2466626,144.56,144.51,110.81050572]
[1727031797928,0.2466626,144.56,144.55,24.213]
[1727031798129,0.2466626,144.56,144.55,77.24287199]
[1727031798435,0.2466626,144.56,144.55,97.59669946]
[1727031799613,0.2466626,144.56,144.55,113.13449946]
[1727031800529,0.2466626,144.56,144.55,104.49184029]
[1727031800737,0.2466626,144.56,144.55,112.29682049]
[1727031800943,0.2466626,144.56,144.55,104.49184029]
[1727031801922,0.2466626,144.56,144.55,105.81741865]
[1727031803443,0.2466626,144.56,144.55,104.49184029]
[1727031804139,0.2466626,144.56,144.55,111.11827929]
[1727031804445,0.2466626,144.56,144.55,112.50091929]
[1727031804648,0.3093392,144.65,144.61,77.23277199]
[1727031805325,0.3093392,144.65,144.61,44.32839]
[1727031805741,0.3093392,144.65,144.61,53.33039799]
[1727031806146,0.3093392,144.65,144.61,54.71280941]
[1727031808320,0.3093392,144.65,144.61,53.20490799]
[1727031808527,0.3093392,144.65,144.61,44.2029]
[1727031808730,15.7746392,144.65,144.61,44.2029]
[1727031809046,15.7746392,144.65,144.61,24.83522001]
[1727031810157,15.7746392,144.65,144.61,44.83522001]
[1727031811857,15.7746392,144.65,144.61,44.2029]
[1727031815243,15.7746392,144.65,144.61,45.58548159]
[1727031815441,15.7746392,144.65,144.61,44.2029]
[1727031827887,15.7746392,144.65,144.61,24.2029]
[1727031834688,0.3093392,144.65,144.61,24.32839]
[1727031834890,0.3093392,144.65,144.61,77.23277199]
[1727031835673,0.3093392,144.65,144.61,85.56991243]
[1727031836996,0.3093392,144.65,144.61,91.77811393]
[1727031838596,0.3093392,144.65,144.61,83.44097349]
[1727031838770,0.3093392,144.65,144.61,91.78651747]
[1727031839189,0.3093392,144.65,144.61,99.55049309]
[1727031840485,0.3093392,144.65,144.61,66.5206211]
[1727031840792,0.3093392,144.65,144.61,44.2029]
[1727031841220,0.3093392,144.65,144.61,30.42457725]
[1727031841386,0.3093392,144.65,144.61,24.2029]
[1727031842505,0.3093392,144.65,144.61,44.2029]
[1727031842703,0.3093392,144.65,144.61,50.42457973]
[1727031842901,6.9144,144.63,144.58,24.2074]
[1727031843293,22.0447,144.64,144.57,14.58846426]
[1727031843491,6.9165,144.59,144.56,6.22621032]
[1727031843698,6.9165,144.59,144.55,38.69652316]
[1727031843899,22.9099,144.59,144.55,24.1080589]
[1727031845981,22.9099,144.59,144.55,17.2943]
[1727031847091,12.9679,144.58,144.54,6.9184]
[1727031847600,12.9679,144.58,144.53,26.9189]
[1727031847800,6.917,144.57,144.53,26.9189]
[1727031849584,6.917,144.57,144.53,6.9189]
[1727031849996,6.918,144.56,144.52,17.298]
[1727031850182,0.12549,144.57,144.49,17.3015]
[1727031850387,23.902374,144.57,144.49,17.3015]
[1727031850610,6.9185,144.54,144.49,24.2219]
[1727031850790,23.902374,144.57,144.49,17.3015]
[1727031851700,0.12549,144.57,144.49,17.3015]
[1727031851900,6.918,144.56,144.51,6.9195]
[1727031852713,6.918,144.56,144.52,0.77585398]
[1727031853420,6.918,144.56,144.51,6.9195]
[1727031858225,6.918,144.56,144.52,0.63285044]
[1727031861728,6.918,144.56,144.52,1.38367691]
[1727031862939,6.9171,144.57,144.53,6.9188]
[1727031863107,12.968,144.58,144.54,1.38348336]
[1727031863430,12.968,144.58,144.54,6.9184]
[1727031868410,6.9167,144.58,144.54,6.9184]
[1727031869534,6.9172,144.57,144.53,24.2158]
[1727031869831,15.9934,144.59,144.53,17.297]
[1727031870441,0.12549,144.58,144.5,33.5169]
[1727031870645,6.9188,144.54,144.5,17.3003]
[1727031870827,6.9193,144.53,144.47,24.48232362]
[1727031871319,23.902374,144.58,144.49,6.9205]
[1727031871320,6.9186,144.54,144.49,6.9205]
[1727031872943,6.9186,144.54,144.5,6.9204]
[1727031873131,6.918,144.56,144.51,6.9198]
[1727031873541,6.9181,144.55,144.51,6.9198]
[1727031874446,6.9181,144.55,144.5,6.9203]
[1727031874821,6.9185,144.54,144.5,6.9203]
[1727031877644,6.2035,144.56,144.51,6.9198]
[1727031877645,6.9176,144.56,144.51,6.9198]
[1727031878325,6.9181,144.55,144.51,6.9198]
[1727031881845,6.9181,144.55,144.49,17.3014]
[1727031882146,6.9185,144.54,144.5,6.9203]
[1727031889955,6.9185,144.54,144.51,6.20408987]
[1727031890144,6.9181,144.55,144.51,6.9199]
[1727031891629,17.41729,144.58,144.52,6.9194]
[1727031891630,6.9176,144.56,144.52,6.9194]
[1727031894356,6.9171,144.57,144.53,6.9189]
[1727031894740,15.9934,144.59,144.51,32.4392]
[1727031894741,20.0,144.61,144.54,0.35813953]
[1727031894948,20.0,144.61,144.51,67.34247883]
[1727031894949,20.0,144.61,144.52,0.35813954]
[1727031895146,6.9164,144.59,144.55,24.2119]
[1727031895352,6.9164,144.59,144.55,17.294]
[1727031896370,6.9166,144.58,144.54,6.9183]
[1727031898359,6.9166,144.58,144.53,6.9188]
[1727031902271,6.9166,144.58,144.54,6.9184]
[1727031907774,6.9166,144.58,144.54,5.4184]
[1727031910266,20.0,144.61,144.54,5.4184]
[1727031910571,6.9162,144.59,144.55,6.9179]
[1727031912366,6.9157,144.6,144.56,6.9175]
[1727031912540,7.2546505,144.62,144.56,17.2935]
[1727031912870,7.2546505,144.62,144.57,6.9169]
[1727031913444,7.2546505,144.62,144.58,7.69641092]
[1727031914571,7.2546505,144.62,144.59,1.38303413]
[1727031916969,7.2546505,144.62,144.57,6.9169]
[1727031917346,0.3398505,144.62,144.56,24.2109]
[1727031917555,6.9157,144.6,144.56,24.2109]
[1727031918467,6.9153,144.61,144.56,24.2109]
[1727031920270,6.9153,144.61,144.57,1.38315216]
[1727031920747,6.9153,144.61,144.56,24.2109]
[1727031921370,6.9153,144.61,144.57,6.917]
[1727031921581,6.9153,144.61,144.58,1.38300986]
[1727031922075,7.2545505,144.62,144.58,8.29940986]
[1727031924952,7.2545505,144.62,144.58,6.9164]
[1727031926964,6.9151,144.61,144.56,17.2935]
[1727031927164,6.9151,144.61,144.56,24.2107]
[1727031930280,6.9156,144.6,144.56,24.2107]
[1727031932361,0.3398505,144.62,144.53,17.2966]
[1727031932562,15.98019,144.61,144.53,17.2966]
[1727031932871,6.9171,144.57,144.53,22.7153]
[1727031933673,6.9166,144.58,144.53,22.7153]
[1727031934783,6.9166,144.58,144.54,6.9183]
[1727031950311,6.4143505,144.62,144.55,17.2945]
[1727031950607,0.3398505,144.62,144.55,17.2945]
[1727031950909,7.2546505,144.62,144.55,9.00200799]
[1727031951110,0.3398505,144.62,144.58,6.9164]
[1727031951987,7.2547505,144.62,144.58,6.9164]
[1727031958488,7.2547505,144.62,144.59,6.36864497]
[1727031958812,7.2547505,144.62,144.6,6.36864497]
[1727031959119,7.2547505,144.62,144.58,6.9164]
[1727031959598,7.2547505,144.62,144.59,0.67251804]
[1727031959802,0.3398505,144.62,144.59,0.67251804]
[1727031959988,0.3398505,144.62,144.59,17.96201804]
[1727031960188,0.3398505,144.62,144.59,26.96402603]
[1727031960389,0.3398505,144.62,144.61,6.9151]
[1727031960605,0.3398505,144.62,144.61,36.58953301]
[1727031961000,0.3398505,144.62,144.61,53.21892301]
[1727031961202,0.3398505,144.62,144.61,76.99580701]
[1727031961388,0.3398505,144.62,144.61,83.51210701]
[1727031961589,0.3398505,144.62,144.61,89.71914771]
[1727031962813,0.3398505,144.62,144.61,89.04672269]
[1727031963117,0.3398505,144.62,144.61,89.50866432]
[1727031963989,0.3398505,144.62,144.61,97.26513296]
[1727031964186,0.3398505,144.62,144.61,91.05809226]
[1727031964795,0.3398505,144.62,144.61,90.59615063]
[1727031965119,0.3398505,144.62,144.61,57.69176864]
[1727031970715,0.3398505,144.62,144.61,91.75356822]
[1727031970914,0.3398505,144.62,144.61,101.65026765]
[1727031972312,5.05e-05,144.62,144.61,101.65026765]
[1727031972516,0.3093392,144.65,144.64,78.89189]
[1727031972733,0.3093392,144.65,144.64,112.82798554]
[1727031973028,0.3093392,144.65,144.64,129.33188554]
[1727031974539,0.3093392,144.65,144.64,128.30017199]
[1727031975451,0.3093392,144.65,144.64,128.17468199]
[1727031976334,0.3093392,144.65,144.64,95.39579]
[1727031977333,0.3093392,144.65,144.64,104.39779799]
[1727031981533,0.3093392,144.65,144.64,128.17468199]
[1727031982034,0.3093392,144.65,144.64,128.30017199]
[1727031982330,0.3093392,144.65,144.64,138.19687142]
[1727031987830,0.3093392,144.65,144.64,128.30017199]
[1727031989129,0.3093392,144.65,144.64,119.172674]
[1727031989336,0.3093392,144.65,144.64,95.39579]
[1727031990940,0.3093392,144.65,144.64,78.89189]
[1727031991942,0.3093392,144.65,144.64,44.1979]
[1727031993429,0.3093392,144.65,144.64,24.1979]
[1727031997753,0.3093392,144.65,144.64,17.2842]
[1727031998054,0.3093392,144.65,144.64,24.1979]
[1727032008839,0.3093392,144.65,144.64,44.1979]
[1727032019355,0.3093392,144.65,144.64,50.57092811]
[1727032023177,0.3093392,144.65,144.64,44.1979]
[1727032023474,0.3093392,144.65,144.64,6.37766658]
[1727032024058,7.2225392,144.65,144.64,6.37766658]
[1727032024256,6.914,144.64,144.59,6.9157]
[1727032024459,6.9142,144.63,144.59,6.9157]
[1727032025682,6.9142,144.63,144.6,6.3846206]
[1727032026372,6.9142,144.63,144.59,6.9157]
[1727032027484,6.9142,144.63,144.6,6.38207719]
[1727032027661,6.9142,144.63,144.59,6.9157]
[1727032029476,6.9142,144.63,144.6,6.37324011]
[1727032029776,6.9142,144.63,144.59,6.9157]
[1727032029980,6.9142,144.63,144.6,6.37331522]
[1727032030160,6.9142,144.63,144.59,6.9157]
[1727032030363,6.9142,144.63,144.6,6.37148121]
[1727032030662,6.9142,144.63,144.59,6.9157]
[1727032030864,6.9142,144.63,144.6,6.37298461]
[1727032031075,6.9142,144.63,144.59,6.9157]
[1727032032771,6.9142,144.63,144.58,24.207]
[1727032033000,6.9148,144.62,144.59,6.37162711]
[1727032033210,6.9148,144.62,144.58,17.2906]
[1727032033495,6.9148,144.62,144.59,6.37093148]
[1727032033694,22.5495,144.62,144.58,17.2906]
[1727032034078,22.5495,144.62,144.58,24.2071]
[1727032034277,22.5495,144.62,144.59,6.37093095]
[1727032034491,22.5495,144.62,144.58,24.2071]
[1727032034699,22.5495,144.62,144.59,6.36966173]
[1727032034880,22.5495,144.62,144.58,24.2071]
[1727032035077,22.5495,144.62,144.59,6.37035332]
[1727032035302,22.5495,144.62,144.58,24.2071]
[1727032035494,22.5495,144.62,144.59,6.3700798]
[1727032035799,22.5495,144.62,144.58,24.2071]
[1727032036113,22.5495,144.62,144.59,6.37012288]
[1727032036394,22.5495,144.62,144.58,24.2071]
[1727032038303,6.9151,144.61,144.58,17.2906]
[1727032038508,6.9151,144.61,144.57,6.9169]
[1727032038716,6.9156,144.6,144.56,6.9174]
[1727032041500,6.9161,144.59,144.55,24.212]
[1727032041907,6.9165,144.58,144.55,17.2941]
[1727032042399,6.9165,144.58,144.54,6.9184]
[1727032044012,0.12549,144.59,144.52,17.2977]
[1727032044317,6.9175,144.56,144.52,24.2168]
[1727032046404,6.3955,144.6,144.54,17.2959]
[1727032046709,13.3114,144.6,144.56,6.9174]
[1727032047718,13.3114,144.6,144.55,6.9178]
[1727032047929,6.9161,144.59,144.55,6.9178]
[1727032049203,6.9157,144.6,144.56,6.9174]
[1727032049598,22.1673,144.61,144.57,6.917]
[1727032049795,15.2521,144.61,144.57,6.917]
[1727032050028,6.9143,144.63,144.56,17.2935]
[1727032050227,6.9148,144.62,144.58,6.9164]
[1727032050907,6.9148,144.62,144.57,6.9169]
[1727032065229,6.9148,144.62,144.58,6.9164]
[1727032067026,6.9152,144.61,144.57,6.9169]
[1727032069614,6.9152,144.61,144.56,17.2935]
[1727032069830,6.9161,144.59,144.57,6.17046745]
[1727032070031,6.9161,144.59,144.55,6.9177]
[1727032070219,6.9161,144.59,144.54,6.9183]
[1727032070424,6.9161,144.59,144.55,6.1728095]
[1727032070722,6.9161,144.59,144.54,6.9183]
[1727032071034,6.9161,144.59,144.55,6.17294405]
[1727032071220,6.9161,144.59,144.54,6.9183]
[1727032071433,6.9161,144.59,144.55,6.17287719]
[1727032071627,6.9161,144.59,144.54,6.9183]
[1727032071943,6.9161,144.59,144.55,6.17287824]
[1727032072138,6.9161,144.59,144.54,6.9183]
[1727032072313,6.9161,144.59,144.55,6.1728287]
[1727032072518,6.9161,144.59,144.54,6.9183]
[1727032072713,6.9161,144.59,144.55,6.17282766]
[1727032073211,6.9161,144.59,144.54,6.9183]
[1727032073740,6.9161,144.59,144.55,6.17279347]
[1727032073910,6.9161,144.59,144.54,6.9183]
[1727032074112,6.9161,144.59,144.55,6.1728909]
[1727032074306,6.9169,144.58,144.53,24.2152]
[1727032074533,6.9171,144.57,144.54,6.17306464]
[1727032074721,6.9171,144.57,144.53,24.2152]
[1727032076432,6.9167,144.58,144.53,24.2152]
[1727032081520,6.9171,144.57,144.53,24.2152]
[1727032081853,0.12549,144.59,144.54,6.9184]
[1727032082018,0.12549,144.59,144.55,6.918]
[1727032083329,7.04189,144.59,144.55,6.918]
[1727032086065,6.0562,144.6,144.5,51.06950395]
[1727032086242,6.9157,144.6,144.56,6.9175]
[1727032086449,6.9161,144.59,144.55,24.2125]
[1727032087062,6.9157,144.6,144.55,24.2125]
[1727032088771,6.9157,144.6,144.56,6.9175]
[1727032089465,6.9157,144.6,144.55,24.2124]
[1727032090038,6.9157,144.6,144.56,6.9173]
[1727032098779,6.9163,144.59,144.55,24.2124]
[1727032099171,6.9166,144.58,144.55,17.2946]
[1727032101765,6.9173,144.57,144.53,26.9186]
[1727032102179,6.9166,144.58,144.54,6.9184]
[1727032104891,6.9162,144.59,144.54,6.9184]
[1727032111196,6.9162,144.59,144.55,6.918]
[1727032114199,6.917,144.57,144.53,6.9189]
[1727032114489,23.902374,144.6,144.52,24.2167]
[1727032114490,6.9176,144.56,144.52,24.2167]
[1727032115274,0.12549,144.59,144.5,0.2466626]
[1727032115275,23.902374,144.58,144.5,0.2466626]
[1727032115477,0.12549,144.57,144.5,7.1666626]
[1727032115681,6.9188,144.54,144.5,0.2466626]
[1727032116505,6.9188,144.54,144.5,7.1669626]
[1727032138513,0.12549,144.52,144.5,0.2466626]
[1727032140529,7.04539,144.51,144.5,0.2466626]
[1727032141622,6.922,144.47,144.45,0.2466626]
[1727032142008,7.04779,144.46,144.45,0.2466626]
[1727032146606,32.3287,144.51,144.45,0.2466626]
[1727032146811,0.12549,144.49,144.45,0.2466626]
[1727032148321,6.9219,144.47,144.45,0.2466626]
[1727032153310,7.04779,144.46,144.45,0.2466626]
[1727032153536,30.824674,144.46,144.45,0.2466626]
[1727032154049,30.824674,144.46,144.4,48.9820505]